bitfinex/quotes_BTCUSD_20250616
["timestamp","ask_amount","ask_price","bid_price","bid_amount"]
[1750045448146,0.73671266,106100.0,106090.0,0.002]
[1750045448147,0.83295442,106100.0,106090.0,0.002]
[1750045448408,5.88248342,106100.0,106090.0,0.15528]
[1750045449566,5.49077076,106100.0,106090.0,0.15528]
[1750045449855,5.88248342,106100.0,106090.0,0.15528]
[1750045450604,5.88248342,106100.0,106090.0,0.17178]
[1750045455382,5.88248342,106100.0,106090.0,0.002]
[1750045458933,5.88248342,106100.0,106090.0,0.0179]
[1750045459929,5.88248342,106100.0,106090.0,0.002]
[1750045461032,5.88248342,106100.0,106090.0,0.0179]
[1750045462085,5.88248342,106100.0,106090.0,0.002]
[1750045463572,5.49077076,106100.0,106090.0,0.002]
[1750045463779,5.88248342,106100.0,106090.0,0.0171]
[1750045465012,5.9314405,106100.0,106090.0,0.0171]
[1750045469627,5.9314405,106100.0,106090.0,0.0329]
[1750045470065,5.95975832,106100.0,106090.0,0.0171]
[1750045470292,5.95975832,106100.0,106090.0,0.002]
[1750045471352,5.95975832,106100.0,106090.0,0.0178]
[1750045472146,5.95975832,106100.0,106090.0,0.002]
[1750045473765,5.95975832,106100.0,106090.0,0.0176]
[1750045476921,5.95975832,106100.0,106090.0,0.002]
[1750045478828,5.95975832,106100.0,106090.0,0.017]
[1750045480287,5.95975832,106100.0,106090.0,0.0322]
[1750045486407,5.51908858,106100.0,106090.0,0.0322]
[1750045486636,0.345,106100.0,106090.0,0.055744]
[1750045486853,0.78566974,106100.0,106090.0,0.0322]
[1750045490308,0.345,106100.0,106090.0,0.0322]
[1750045490518,0.78566974,106100.0,106090.0,0.0822]
[1750045490731,0.345,106100.0,106090.0,0.52286974]
[1750045491144,0.345,106100.0,106090.0,0.0822]
[1750045491562,0.34,106100.0,106090.0,0.0802]
[1750045491767,0.78066974,106100.0,106090.0,0.0832]
[1750045492056,0.342,106100.0,106090.0,0.0872]
[1750045492676,0.78266974,106100.0,106090.0,0.0872]
[1750045492891,0.342,106100.0,106090.0,0.0872]
[1750045494558,0.342,106100.0,106090.0,0.24044]
[1750045495593,0.342,106100.0,106090.0,0.0872]
[1750045495823,0.342,106100.0,106090.0,0.24044]
[1750045496480,0.73354663,106100.0,106090.0,0.24044]
[1750045496914,0.73354663,106100.0,106090.0,0.0872]
[1750045497348,0.73354663,106100.0,106090.0,0.24044]
[1750045498660,0.73354663,106100.0,106090.0,0.0372]
[1750045498877,0.82978839,106100.0,106090.0,0.24044]
[1750045499298,0.82978839,106100.0,106090.0,0.19044]
[1750045499935,5.87931739,106100.0,106090.0,0.24044]
[1750045500413,5.87931739,106100.0,106090.0,0.19044]
[1750045500630,5.87931739,106100.0,106090.0,0.022]
[1750045500844,5.9134661,106100.0,106090.0,0.007]
[1750045501061,5.9284661,106100.0,106090.0,0.007]
[1750045501276,5.93789081,106100.0,106090.0,0.007]
[1750045501491,5.9284661,106100.0,106090.0,0.007]
[1750045501705,5.90404166,106100.0,106090.0,0.007]
[1750045502352,5.9134661,106100.0,106090.0,0.007]
[1750045502564,5.92289072,106100.0,106090.0,0.007]
[1750045502988,5.92289063,106100.0,106090.0,0.007]
[1750045503411,5.91346602,106100.0,106090.0,0.007]
[1750045504162,5.90404166,106100.0,106090.0,0.007]
[1750045504374,5.87931739,106100.0,106090.0,0.007]
[1750045505999,5.88874175,106100.0,106090.0,0.007]
[1750045506218,5.88874175,106100.0,106090.0,0.0225]
[1750045506363,5.87931739,106100.0,106090.0,0.0225]
[1750045508595,5.88874166,106100.0,106090.0,0.0225]
[1750045509078,5.87931739,106100.0,106090.0,0.0225]
[1750045510366,5.88874175,106100.0,106090.0,0.0225]
[1750045510583,5.87931739,106100.0,106090.0,0.0225]
[1750045512475,5.88874175,106100.0,106090.0,0.0225]
[1750045512706,5.87931739,106100.0,106090.0,0.0225]
[1750045513541,5.88874166,106100.0,106090.0,0.0225]
[1750045513750,5.87931739,106100.0,106090.0,0.0225]
[1750045513959,5.90766539,106100.0,106090.0,0.0225]
[1750045515107,5.90766539,106100.0,106090.0,0.0381]
[1750045517312,5.87931739,106100.0,106090.0,0.0381]
[1750045517517,5.90766439,106100.0,106090.0,0.0381]
[1750045517733,5.87931739,106100.0,106090.0,0.0381]
[1750045522930,5.92843307,106100.0,106090.0,0.0381]
[1750045523552,5.95678007,106100.0,106090.0,0.0381]
[1750045524162,5.92843307,106100.0,106090.0,0.0381]
[1750045524342,5.95678007,106100.0,106090.0,0.0381]
[1750045526381,5.92843307,106100.0,106090.0,0.0381]
[1750045527029,5.95678107,106100.0,106090.0,0.0381]
[1750045527963,5.98507954,106100.0,106090.0,0.0381]
[1750045529755,5.98272901,106100.0,106090.0,0.0381]
[1750045530622,5.95438101,106100.0,106090.0,0.0381]
[1750045530833,5.98272801,106100.0,106090.0,0.0381]
[1750045531302,6.4422393,106100.0,106090.0,0.007]
[1750045531549,6.00157699,106100.0,106090.0,0.007]
[1750045531779,6.0393185,106100.0,106090.0,0.007]
[1750045532049,5.98272801,106100.0,106090.0,0.0383]
[1750045532750,5.99215237,106100.0,106090.0,0.0383]
[1750045532991,5.99115237,106100.0,106090.0,0.0353]
[1750045533232,6.0005769,106100.0,106090.0,0.0313]
[1750045533435,6.0005769,106100.0,106090.0,0.0323]
[1750045533671,6.03831841,106100.0,106090.0,0.0323]
[1750045533887,5.99115237,106100.0,106090.0,0.0323]
[1750045534148,5.99215237,106100.0,106090.0,0.0343]
[1750045534345,6.0015769,106100.0,106090.0,0.0343]
[1750045534885,6.00157681,106100.0,106090.0,0.0343]
[1750045538172,6.01100143,106100.0,106090.0,0.0343]
[1750045538389,6.02042632,106100.0,106090.0,0.0183]
[1750045538610,6.67790782,106100.0,106090.0,0.003]
[1750045538836,6.73532558,106100.0,106090.0,0.003]
[1750045539061,6.79185765,106100.0,106090.0,0.003]
[1750045542686,6.35119534,106100.0,106090.0,0.003]
[1750045542941,6.08817991,106100.0,106090.0,0.0182]
[1750045543158,6.08817991,106100.0,106090.0,0.0347]
[1750045543159,6.08817938,106100.0,106090.0,0.0347]
[1750045543372,6.09760436,106100.0,106090.0,0.0347]
[1750045543564,6.08817938,106100.0,106090.0,0.0347]
[1750045543846,5.64751707,106100.0,106090.0,0.0347]
[1750045544058,6.08817938,106100.0,106090.0,0.0347]
[1750045544502,6.09760427,106100.0,106090.0,0.0347]
[1750045545359,6.10702934,106100.0,106090.0,0.0347]
[1750045545610,6.09760427,106100.0,106090.0,0.0347]
[1750045546278,6.10702925,106100.0,106090.0,0.0347]
[1750045546509,6.09760427,106100.0,106090.0,0.0347]
[1750045547559,6.10702925,106100.0,106090.0,0.0347]
[1750045547932,6.09760427,106100.0,106090.0,0.0347]
[1750045548900,6.07875458,106100.0,106090.0,0.0347]
[1750045549123,6.08817929,106100.0,106090.0,0.0347]
[1750045549889,6.28610568,106100.0,106090.0,0.003]
[1750045550115,6.72676799,106100.0,106090.0,0.003]
[1750045550292,6.09760427,106100.0,106090.0,0.003]
[1750045550505,6.53826658,106100.0,106090.0,0.003]
[1750045550722,6.09760427,106100.0,106090.0,0.003]
[1750045550932,6.72676799,106100.0,106090.0,0.003]
[1750045551155,6.52884222,106100.0,106090.0,0.003]
[1750045551602,6.53826729,106100.0,106090.0,0.003]
[1750045551815,6.71734408,106100.0,106090.0,0.003]
[1750045552026,6.70504962,106100.0,106090.0,0.003]
[1750045552270,6.83169783,106100.0,106090.0,0.003]
[1750045552496,6.98493783,106100.0,106090.0,0.003]
[1750045552699,6.94719623,106100.0,106090.0,0.003]
[1750045553331,6.94719623,106100.0,106090.0,0.002]
[1750045553332,6.94619623,106100.0,106090.0,0.002]
[1750045553529,5.40838171,106080.0,106070.0,0.04268874]
[1750045553751,6.38594809,106080.0,106070.0,0.04268874]
[1750045554390,6.58391179,106080.0,106070.0,0.04268874]
[1750045554588,6.61220064,106080.0,106070.0,0.02648874]
[1750045554797,6.64998148,106080.0,106070.0,0.04148874]
[1750045555028,6.64055526,106080.0,106070.0,0.01008874]
[1750045555849,6.64155526,106080.0,106070.0,0.01108874]
[1750045556267,6.63212877,106080.0,106070.0,0.01108874]
[1750045556471,6.63312877,106080.0,106070.0,0.01208874]
[1750045556659,6.63212877,106080.0,106070.0,0.02748874]
[1750045556887,6.53468877,106080.0,106070.0,0.02748874]
[1750045557177,6.53568877,106080.0,106070.0,0.02848874]
[1750045558999,6.53568877,106080.0,106070.0,0.02748874]
[1750045559206,6.53468877,106080.0,106070.0,0.02748874]
[1750045559418,6.53568877,106080.0,106070.0,0.02748874]
[1750045559855,6.52526202,106080.0,106070.0,0.02648874]
[1750045560076,6.51583518,106080.0,106070.0,0.02648874]
[1750045560295,6.51783518,106080.0,106070.0,0.02648874]
[1750045560518,6.51783518,106080.0,106070.0,0.01008874]
[1750045560973,6.55555364,106080.0,106070.0,0.01008874]
[1750045563851,6.51783518,106080.0,106070.0,0.01008874]
[1750045564275,6.55555364,106080.0,106070.0,0.01008874]
[1750045564766,6.51783518,106080.0,106070.0,0.01008874]
[1750045566559,6.58237603,106080.0,106070.0,0.01008874]
[1750045567476,0.34942755,106070.0,106060.0,0.0302]
[1750045567722,6.07569534,106070.0,106060.0,0.03024695]
[1750045568159,6.10405334,106070.0,106060.0,0.03024695]
[1750045569087,6.13234219,106070.0,106060.0,0.03024695]
[1750045569279,6.13234219,106070.0,106060.0,0.03124695]
[1750045569532,6.13434219,106070.0,106060.0,0.03224695]
[1750045572261,6.10605334,106070.0,106060.0,0.03224695]
[1750045575307,6.13434219,106070.0,106060.0,0.03224695]
[1750045576403,5.94578747,106070.0,106060.0,0.03224695]
[1750045576616,6.15319738,106070.0,106060.0,0.03224695]
[1750045576829,6.16262476,106070.0,106060.0,0.03224695]
[1750045577041,6.21164623,106070.0,106060.0,0.03224695]
[1750045578533,6.20221885,106070.0,106060.0,0.03224695]
[1750045578984,6.19921885,106070.0,106060.0,0.03224695]
[1750045579201,6.69529602,106070.0,106060.0,0.00204695]
[1750045579419,6.73301448,106070.0,106060.0,0.00204695]
[1750045581158,6.70472563,106070.0,106060.0,0.00204695]
[1750045582704,6.74416563,106070.0,106060.0,0.01784695]
[1750045582910,6.30320185,106070.0,106060.0,0.03284695]
[1750045583120,6.35973392,106070.0,106060.0,0.03284695]
[1750045583554,6.26376185,106070.0,106060.0,0.03284695]
[1750045583803,5.58213301,106070.0,106060.0,0.03284695]
[1750045584024,5.54441455,106070.0,106060.0,0.03284695]
[1750045584237,5.95709254,106070.0,106060.0,0.04369058]
[1750045584447,5.92873454,106070.0,106060.0,0.03284695]
[1750045584679,0.87920554,106070.0,106060.0,0.03284695]
[1750045584900,0.83007517,106070.0,106060.0,0.03284695]
[1750045590431,5.88903119,106070.0,106060.0,0.03284695]
[1750045590690,5.8984583,106070.0,106060.0,0.03284695]
[1750045590954,5.90788559,106070.0,106060.0,0.03284695]
[1750045591220,5.8984583,106070.0,106060.0,0.03284695]
[1750045591526,5.87960417,106070.0,106060.0,0.03284695]
[1750045591710,5.88903119,106070.0,106060.0,0.03284695]
[1750045592130,5.87960417,106070.0,106060.0,0.03284695]
[1750045592342,5.89845848,106070.0,106060.0,0.03284695]
[1750045592919,5.89845839,106070.0,106060.0,0.03284695]
[1750045593829,5.90788585,106070.0,106060.0,0.03284695]
[1750045594316,5.89845839,106070.0,106060.0,0.03284695]
[1750045594941,5.90788577,106070.0,106060.0,0.03284695]
[1750045595154,5.89845839,106070.0,106060.0,0.03284695]
[1750045595420,5.90788577,106070.0,106060.0,0.03284695]
[1750045596146,5.91731332,106070.0,106060.0,0.03284695]
[1750045596508,5.90788577,106070.0,106060.0,0.03284695]
[1750045596909,5.89845839,106070.0,106060.0,0.03284695]
[1750045597314,5.88903119,106070.0,106060.0,0.03284695]
[1750045597689,5.8890311,106070.0,106060.0,0.03284695]
[1750045598712,5.89845812,106070.0,106060.0,0.03284695]
[1750045599323,5.91731252,106070.0,106060.0,0.03284695]
[1750045599908,5.90788523,106070.0,106060.0,0.03284695]
[1750045600243,5.91731252,106070.0,106060.0,0.03284695]
[1750045600473,5.90788523,106070.0,106060.0,0.03284695]
[1750045600818,5.91731252,106070.0,106060.0,0.03284695]
[1750045601510,5.90788523,106070.0,106060.0,0.03284695]
[1750045603090,5.89845812,106070.0,106060.0,0.03284695]
[1750045603311,5.8890311,106070.0,106060.0,0.03284695]
[1750045603546,5.87960417,106070.0,106060.0,0.03284695]
[1750045607616,0.83007517,106070.0,106060.0,0.03284695]
[1750045608405,0.43824176,106070.0,106060.0,0.03284695]
[1750045608613,0.83007517,106070.0,106060.0,0.03284695]
[1750045611436,0.73383341,106070.0,106060.0,0.03284695]
[1750045614966,0.78283395,106070.0,106060.0,0.03284695]
[1750045618732,0.002,106070.0,106060.0,0.7150856]
[1750045618946,0.002,106070.0,106060.0,1.0138856]
[1750045619154,0.342,106070.0,106060.0,1.0138856]
[1750045619780,0.341,106070.0,106060.0,0.41881165]
[1750045619997,0.34,106070.0,106060.0,1.0118856]
[1750045620172,0.34,106070.0,106060.0,1.0148856]
[1750045620173,0.343,106070.0,106060.0,1.0148856]
[1750045620863,0.343,106070.0,106060.0,0.57405165]
[1750045621072,0.003,106070.0,106060.0,0.57405165]
[1750045626018,0.003,106070.0,106060.0,0.42081165]
[1750045626223,0.003,106070.0,106060.0,0.53588695]
[1750045631853,0.343,106070.0,106060.0,0.53588695]
[1750045632068,0.343,106070.0,106060.0,0.38264695]
[1750045632306,0.343,106070.0,106060.0,0.53584695]
[1750045634971,0.343,106070.0,106060.0,0.48584695]
[1750045635184,0.343,106070.0,106060.0,0.53584695]
[1750045636236,0.003,106070.0,106060.0,0.53584695]
[1750045636442,0.343,106070.0,106060.0,0.53584695]
[1750045638557,0.343,106070.0,106060.0,0.38264695]
[1750045638755,0.343,106070.0,106060.0,0.53584695]
[1750045642413,0.343,106070.0,106060.0,0.38264695]
[1750045642623,0.343,106070.0,106060.0,0.53584695]
[1750045644148,0.343,106070.0,106060.0,0.38264695]
[1750045644364,0.343,106070.0,106060.0,0.53584695]
[1750045644574,0.343,106070.0,106060.0,0.38264695]
[1750045644792,0.343,106070.0,106060.0,0.53584695]
[1750045646305,0.003,106070.0,106060.0,0.53584695]
[1750045646519,0.343,106070.0,106060.0,0.53584695]
[1750045649602,0.343,106070.0,106060.0,0.97657389]
[1750045652095,0.343,106070.0,106060.0,1.00479913]
[1750045653286,0.343,106070.0,106060.0,0.97657389]
[1750045653506,0.003,106070.0,106060.0,1.07272311]
[1750045653722,0.003,106070.0,106060.0,1.19719011]
[1750045655063,0.003,106070.0,106060.0,0.50711395]
[1750045655298,0.003,106070.0,106060.0,1.14044089]
[1750045656213,0.343,106070.0,106060.0,1.14044089]
[1750045657636,0.343,106070.0,106060.0,0.50711395]
[1750045657841,0.343,106070.0,106060.0,1.10104089]
[1750045658049,0.343,106070.0,106060.0,0.94784089]
[1750045658270,0.343,106070.0,106060.0,1.07281565]
[1750045659445,0.343,106070.0,106060.0,0.63208871]
[1750045659729,0.343,106070.0,106060.0,1.07281565]
[1750045661043,0.343,106070.0,106060.0,0.91961565]
[1750045661263,0.343,106070.0,106060.0,1.07281565]
[1750045664527,0.343,106070.0,106060.0,0.91961565]
[1750045664733,0.343,106070.0,106060.0,1.07281565]
[1750045665141,0.343,106070.0,106060.0,0.63208871]
[1750045667305,0.78372694,106070.0,106060.0,0.47888871]
[1750045667520,0.78372694,106070.0,106060.0,0.53584695]
[1750045673724,0.78372694,106070.0,106060.0,0.38264695]
[1750045673967,0.78372694,106070.0,106060.0,0.52084695]
[1750045675222,0.78372694,106070.0,106060.0,0.36764695]
[1750045675461,0.78372694,106070.0,106060.0,0.52084695]
[1750045676448,0.343,106070.0,106060.0,0.52084695]
[1750045676694,0.78372694,106070.0,106060.0,0.53614695]
[1750045681736,0.78372694,106070.0,106060.0,0.52084695]
[1750045682354,0.78372694,106070.0,106060.0,0.31764695]
[1750045682582,0.78372694,106070.0,106060.0,0.52084695]
[1750045685087,0.78372694,106070.0,106060.0,0.36764695]
[1750045685320,0.78372694,106070.0,106060.0,0.45504695]
[1750045685550,5.84905594,106070.0,106060.0,0.35184695]
[1750045685773,5.84905594,106070.0,106060.0,0.45504695]
[1750045685779,5.9602977,106070.0,106060.0,0.45504695]
[1750045688216,5.9602977,106070.0,106060.0,0.45504695]
[1750045688719,5.9602977,106070.0,106060.0,0.15624695]
[1750045689601,5.9602977,106070.0,106060.0,0.00304695]
[1750045689819,5.98857929,106070.0,106060.0,0.00304695]
[1750045690044,5.98857929,106070.0,106060.0,0.15624695]
[1750045690271,6.01693529,106070.0,106060.0,0.15624695]
[1750045690714,6.01593529,106070.0,106060.0,0.15424695]
[1750045690929,6.00650783,106070.0,106060.0,0.15424695]
[1750045691182,6.01693529,106070.0,106060.0,0.00304695]
[1750045691401,6.01693529,106070.0,106060.0,0.15624695]
[1750045691829,6.01493529,106070.0,106060.0,0.00204695]
[1750045692051,6.02436293,106070.0,106060.0,0.15524695]
[1750045692268,6.02536293,106070.0,106060.0,0.15824695]
[1750045695489,6.01593529,106070.0,106060.0,0.15824695]
[1750045695707,6.02536284,106070.0,106060.0,0.00504695]
[1750045695920,6.03479057,106070.0,106060.0,0.00504695]
[1750045696129,6.02536284,106070.0,106060.0,0.00504695]
[1750045696343,6.03479057,106070.0,106060.0,0.00504695]
[1750045696800,6.22334529,106070.0,106060.0,0.00504695]
[1750045697197,6.21391836,106070.0,106060.0,0.00504695]
[1750045698098,6.24220919,106070.0,106060.0,0.00504695]
[1750045698790,6.05365447,106070.0,106060.0,0.00504695]
[1750045699496,6.24220919,106070.0,106060.0,0.00504695]
[1750045699719,6.24128729,106070.0,106060.0,0.00504695]
[1750045700192,6.21299646,106070.0,106060.0,0.00504695]
[1750045700433,6.24128729,106070.0,106060.0,0.00504695]
[1750045700903,6.04330484,106070.0,106060.0,0.00504695]
[1750045701354,6.00558646,106070.0,106060.0,0.00504695]
[1750045701568,6.00001401,106070.0,106060.0,0.00504695]
[1750045701793,6.00944174,106070.0,106060.0,0.00504695]
[1750045702192,6.00001401,106070.0,106060.0,0.00504695]
[1750045703043,5.98421331,106070.0,106060.0,0.00504695]
[1750045703265,5.97478593,106070.0,106060.0,0.00504695]
[1750045703496,5.98421331,106070.0,106060.0,0.00504695]
[1750045703704,5.97478593,106070.0,106060.0,0.02034695]
[1750045704382,5.97478584,106070.0,106060.0,0.02034695]
[1750045704594,5.97478593,106070.0,106060.0,0.02034695]
[1750045704803,5.96535873,106070.0,106060.0,0.02034695]
[1750045705023,5.9559318,106070.0,106060.0,0.02891165]
[1750045705268,5.51520486,106070.0,106060.0,0.04441165]
[1750045705492,0.9064028,106070.0,106060.0,0.03584695]
[1750045709490,0.81016104,106070.0,106060.0,0.03584695]
[1750045713900,0.81016104,106070.0,106060.0,0.18904695]
[1750045716348,0.3694341,106070.0,106060.0,0.18904695]
[1750045716558,0.81016104,106070.0,106060.0,0.18904695]
[1750045717071,0.81016104,106070.0,106060.0,0.54919058]
[1750045717291,0.81016104,106070.0,106060.0,0.48784695]
[1750045717727,0.78180504,106070.0,106060.0,0.48784695]
[1750045718475,0.78180504,106070.0,106060.0,0.33464695]
[1750045718678,0.78180504,106070.0,106060.0,0.48784695]
[1750045723120,0.78180504,106070.0,106060.0,0.54163165]
[1750045725611,0.78180504,106070.0,106060.0,0.48784695]
[1750045728669,0.78180504,106070.0,106060.0,0.48284695]
[1750045731058,5.83133404,106070.0,106060.0,0.48284695]
[1750045731516,5.86173404,106070.0,106060.0,0.45204695]
[1750045731964,5.85968704,106070.0,106060.0,0.46834695]
[1750045732192,5.85968704,106070.0,106060.0,0.48334695]
[1750045733039,5.85968704,106070.0,106060.0,0.18454695]
[1750045733245,5.88797787,106070.0,106060.0,0.18454695]
[1750045733450,5.88797787,106070.0,106060.0,0.16954695]
[1750045733672,5.89740489,106070.0,106060.0,0.01634695]
[1750045733895,5.88797787,106070.0,106060.0,0.16954695]
[1750045734322,5.8974048,106070.0,106060.0,0.16954695]
[1750045734528,5.88797787,106070.0,106060.0,0.16954695]
[1750045735704,5.8974048,106070.0,106060.0,0.16954695]
[1750045735914,5.88797787,106070.0,106060.0,0.16954695]
[1750045737955,5.88797787,106070.0,106060.0,0.18544695]
[1750045739776,5.88797787,106070.0,106060.0,0.16954695]
[1750045740286,5.98421963,106070.0,106060.0,0.01634695]
[1750045740542,5.99364665,106070.0,106060.0,0.01634695]
[1750045740781,5.98421963,106070.0,106060.0,0.01634695]
[1750045741002,5.99364665,106070.0,106060.0,0.01634695]
[1750045741441,5.5529198,106070.0,106060.0,0.01634695]
[1750045741662,5.98421963,106070.0,106060.0,0.01634695]
[1750045742362,5.98421963,106070.0,106060.0,0.03194695]
[1750045742578,5.9559288,106070.0,106060.0,0.03194695]
[1750045743906,5.96535573,106070.0,106060.0,0.01634695]
[1750045744125,5.9559288,106070.0,106060.0,0.01634695]
[1750045745211,5.98421963,106070.0,106060.0,0.01634695]
[1750045746137,5.99898316,106070.0,106060.0,0.01634695]
[1750045747181,5.99898316,106070.0,106060.0,4.695e-05]
[1750045747395,5.99898316,106070.0,106060.0,0.01594695]
[1750045748274,5.98421963,106070.0,106060.0,0.01594695]
[1750045751141,5.54349269,106070.0,106060.0,0.01594695]
[1750045751294,5.98421963,106070.0,106060.0,0.01594695]
[1750045753403,5.54349269,106070.0,106060.0,0.01594695]
[1750045753602,5.98421963,106070.0,106060.0,0.03124695]
[1750045755494,5.99364656,106070.0,106060.0,0.03124695]
[1750045755732,5.98421963,106070.0,106060.0,0.03124695]
[1750045756965,5.99898371,106070.0,106060.0,0.03124695]
[1750045758123,5.98421963,106070.0,106060.0,0.03124695]
[1750045758916,6.00307394,106070.0,106060.0,0.03124695]
[1750045759143,5.99364665,106070.0,106060.0,4.695e-05]
[1750045759378,6.00307385,106070.0,106060.0,4.695e-05]
[1750045760035,6.01250123,106070.0,106060.0,4.695e-05]
[1750045760491,6.00307385,106070.0,106060.0,4.695e-05]
[1750045760907,6.00307376,106070.0,106060.0,4.695e-05]
[1750045761353,5.98421963,106070.0,106060.0,4.695e-05]
[1750045761593,5.99364656,106070.0,106060.0,0.01544695]
[1750045762359,5.99364656,106070.0,106060.0,0.03194695]
[1750045762573,5.98421963,106070.0,106060.0,0.03194695]
[1750045763242,5.44725093,106070.0,106060.0,0.03194695]
[1750045763461,5.88797787,106070.0,106060.0,0.03194695]
[1750045766398,5.90274177,106070.0,106060.0,0.03194695]
[1750045766587,5.87438877,106070.0,106060.0,0.03194695]
[1750045767911,5.85962487,106070.0,106060.0,0.03194695]
[1750045769213,5.96529365,106070.0,106060.0,0.01544695]
[1750045769416,5.95586663,106070.0,106060.0,0.01544695]
[1750045769623,5.96529365,106070.0,106060.0,0.01544695]
[1750045769837,5.96484635,106070.0,106060.0,0.01544695]
[1750045770044,5.95541933,106070.0,106060.0,0.01544695]
[1750045771387,5.83560658,106070.0,106060.0,0.01544695]
[1750045771606,5.83560658,106070.0,106060.0,0.03054695]
[1750045774009,5.83560658,106070.0,106060.0,0.05393765]
[1750045774530,5.83560658,106070.0,106060.0,0.03054695]
[1750045774745,5.83548515,106070.0,106060.0,0.03054695]
[1750045777148,5.39475821,106070.0,106060.0,0.03054695]
[1750045777368,5.83548515,106070.0,106060.0,0.03054695]
[1750045781048,5.82072107,106070.0,106060.0,0.03054695]
[1750045781255,5.8490119,106070.0,106060.0,0.03054695]
[1750045784260,5.86377538,106070.0,106060.0,0.03054695]
[1750045785531,5.8490119,106070.0,106060.0,0.03054695]
[1750045785734,5.84905284,106070.0,106060.0,0.03054695]
[1750045786019,5.4083259,106070.0,106060.0,0.03054695]
[1750045786231,5.84905284,106070.0,106060.0,0.03054695]
[1750045786442,5.75281108,106070.0,106060.0,0.05393765]
[1750045786647,5.75281108,106070.0,106060.0,0.03054695]
[1750045788805,5.76757465,106070.0,106060.0,0.03054695]
[1750045789014,5.75281108,106070.0,106060.0,0.03054695]
[1750045792177,5.76757455,106070.0,106060.0,0.03054695]
[1750045792318,5.75281108,106070.0,106060.0,0.03054695]
[1750045793607,5.31208414,106070.0,106060.0,0.03054695]
[1750045793791,5.75281108,106070.0,106060.0,0.03054695]
[1750045796543,5.76757462,106070.0,106060.0,0.03054695]
[1750045796763,0.67495031,106070.0,106060.0,0.08381765]
[1750045797034,0.67495031,106070.0,106060.0,0.03054695]
[1750045797911,0.23422337,106070.0,106060.0,0.08054695]
[1750045798137,0.002,106070.0,106060.0,0.82243084]
[1750045798371,0.002,106070.0,106060.0,0.82007389]
[1750045798588,0.342,106070.0,106060.0,0.37934695]
[1750045798807,0.78272694,106070.0,106060.0,0.47549617]
[1750045799030,0.78272694,106070.0,106060.0,0.37934695]
[1750045799479,0.78272694,106070.0,106060.0,0.53282695]
[1750045800902,0.002,106070.0,106060.0,0.53282695]
[1750045801346,0.01676215,106070.0,106060.0,0.53282695]
[1750045808233,0.002,106070.0,106060.0,0.53282695]
[1750045809857,0.002,106070.0,106060.0,0.92462368]
[1750045812580,0.01676235,106070.0,106060.0,0.92462368]
[1750045816242,0.01676235,106070.0,106060.0,1.02086544]
[1750045816451,0.002,106070.0,106060.0,1.02086544]
[1750045817279,0.001,106070.0,106060.0,1.02086544]
[1750045817687,5.8096575,106100.0,106090.0,0.0145]
[1750045817895,5.51410253,106100.0,106090.0,0.1671]
[1750045818300,5.90589926,106100.0,106090.0,0.1824]
[1750045818948,5.91289926,106100.0,106090.0,0.1834]
[1750045819164,5.89789926,106100.0,106090.0,0.1834]
[1750045819811,5.90089926,106100.0,106090.0,0.1844]
[1750045820031,5.88756749,106100.0,106090.0,0.1844]
[1750045820802,5.059529,106100.0,106090.0,0.28272]
[1750045821032,0.01,106100.0,106090.0,0.28272]
[1750045821930,0.003,106100.0,106090.0,0.28172]
[1750045822141,0.007,106100.0,106090.0,0.28272]
[1750045822382,0.007,106100.0,106090.0,0.2334]
[1750045822611,0.004,106100.0,106090.0,0.2324]
[1750045822822,0.005,106100.0,106090.0,0.2354]
[1750045823041,0.007,106100.0,106090.0,0.2364]
[1750045823491,0.01975872,106100.0,106090.0,0.2354]
[1750045823706,0.01975872,106100.0,106090.0,0.2374]
[1750045823930,0.006,106100.0,106090.0,0.2374]
[1750045824906,0.006,106100.0,106090.0,0.5362]
[1750045825832,0.346,106100.0,106090.0,0.5362]
[1750045826255,0.346,106100.0,106090.0,0.3826]
[1750045826509,0.346,106100.0,106090.0,0.5362]
[1750045827303,0.36075808,106100.0,106090.0,0.5362]
[1750045827962,0.346,106100.0,106090.0,0.5362]
[1750045830765,0.006,106100.0,106090.0,0.5362]
[1750045830996,0.346,106100.0,106090.0,0.5362]
[1750045831264,0.36075829,106100.0,106090.0,0.63234922]
[1750045831911,0.02075829,106100.0,106090.0,0.5362]
[1750045832107,0.006,106100.0,106090.0,0.5362]
[1750045833043,0.346,106100.0,106090.0,0.97666563]
[1750045835035,0.006,106100.0,106090.0,0.5362]
[1750045835325,0.02075791,106100.0,106090.0,0.63244176]
[1750045835570,0.02075791,106100.0,106090.0,0.70986943]
[1750045836093,0.02075791,106100.0,106090.0,0.63244176]
[1750045837541,0.03008345,106100.0,106090.0,0.63244176]
[1750045838433,0.006,106100.0,106090.0,1.02396455]
[1750045839040,0.006,106100.0,106090.0,0.87036455]
[1750045839261,0.006,106100.0,106090.0,1.06348455]
[1750045839418,0.006,106100.0,106090.0,1.15963377]
[1750045842966,0.02075826,106100.0,106090.0,1.15959377]
[1750045843890,0.006,106100.0,106090.0,1.15959377]
[1750045847304,0.02075825,106100.0,106090.0,1.15959377]
[1750045847833,0.02075825,106100.0,106090.0,1.06332455]
[1750045848065,0.02075825,106100.0,106090.0,0.67180176]
[1750045848274,0.006,106100.0,106090.0,0.67180176]
[1750045849627,0.006,106100.0,106090.0,1.06332455]
[1750045850567,0.006,106100.0,106090.0,0.87036455]
[1750045850820,0.006,106100.0,106090.0,1.06324455]
[1750045851070,0.006,106100.0,106090.0,0.67172176]
[1750045852602,0.02075835,106100.0,106090.0,0.67172176]
[1750045852821,0.02075835,106100.0,106090.0,0.47884176]
[1750045853046,0.02075835,106100.0,106090.0,0.67172176]
[1750045854604,0.02075835,106100.0,106090.0,0.47884176]
[1750045854823,0.02075835,106100.0,106090.0,0.67168176]
[1750045855927,0.02075835,106100.0,106090.0,0.47884176]
[1750045856149,0.02075835,106100.0,106090.0,0.67160176]
[1750045857048,0.36075835,106100.0,106090.0,1.1120589]
[1750045858741,0.346,106100.0,106090.0,1.1120589]
[1750045859387,0.346,106100.0,106090.0,0.67160176]
[1750045859603,0.346,106100.0,106090.0,1.1120589]
[1750045861165,0.346,106100.0,106090.0,1.0620589]
[1750045861378,0.346,106100.0,106090.0,1.1120589]
[1750045862049,0.36075831,106100.0,106090.0,1.1120589]
[1750045862486,0.36075831,106100.0,106090.0,0.67160176]
[1750045862715,0.36075831,106100.0,106090.0,1.1120589]
[1750045864590,0.36075831,106100.0,106090.0,0.67160176]
[1750045864837,0.346,106100.0,106090.0,1.1120589]